bitfinex/quotes_SOLUSD_20250123
["timestamp","ask_amount","ask_price","bid_price","bid_amount"]
[1737624891617,23.776884,247.32,247.29,18.83507194]
[1737624892134,23.776884,247.32,247.27,18.83507194]
[1737624892426,27.820284,247.32,247.25,0.03]
[1737624895520,27.820284,247.32,247.25,18.86507194]
[1737624895901,27.820284,247.32,247.25,0.03]
[1737624896228,23.776884,247.3,247.25,0.03]
[1737624896749,42.61195594,247.31,247.25,0.03]
[1737624897418,23.776884,247.31,247.25,0.03]
[1737624898119,23.776884,247.3,247.25,0.03]
[1737624898521,20.0,247.27,247.25,0.03]
[1737624899318,20.0,247.28,247.25,0.03]
[1737624899520,20.0,247.27,247.25,0.03]
[1737624899937,23.776884,247.26,247.25,0.03]
[1737624901148,23.776884,247.26,247.11,18.83507194]
[1737624901149,23.776884,247.22,247.11,18.83507194]
[1737624901325,23.776884,247.2,247.11,18.83507194]
[1737624901719,18.83507194,247.26,247.17,18.83507194]
[1737624902022,7.7066,247.28,247.18,18.83507194]
[1737624902226,22.97507194,247.27,247.16,18.83507194]
[1737624902532,22.97507194,247.27,247.08,18.83507194]
[1737624902533,23.776884,247.24,247.14,18.83507194]
[1737624902731,43.776884,247.2,247.14,18.83507194]
[1737624902925,43.776884,247.2,247.12,18.83507194]
[1737624903229,43.776884,247.2,247.1,18.83507194]
[1737624903435,23.776884,247.18,247.08,18.83507194]
[1737624903631,23.776884,247.18,247.1,18.83507194]
[1737624903812,23.776884,247.16,247.07,18.83507194]
[1737624904009,20.0,247.13,247.07,18.83507194]
[1737624904215,23.776884,247.12,247.07,18.83507194]
[1737624904415,23.776884,247.1,247.05,18.83507194]
[1737624906116,4.046,247.16,247.07,18.83507194]
[1737624906322,4.12,247.15,247.11,18.83507194]
[1737624906723,23.776884,247.14,247.11,18.83507194]
[1737624907029,23.776884,247.15,247.11,18.83507194]
[1737624907424,4.12,247.16,247.11,18.83507194]
[1737624907724,81.5,247.26,247.15,18.83507194]
[1737624907928,1.5675,247.28,247.23,18.83507194]
[1737624908131,0.063,247.33,247.25,18.83507194]
[1737624908458,0.063,247.33,247.29,18.83507194]
[1737624908631,0.063,247.33,247.31,18.83507194]
[1737624911044,0.063,247.4,247.35,20.0]
[1737624911226,0.063,247.4,247.39,18.83507194]
[1737624912742,0.063,247.4,247.37,18.83507194]
[1737624912945,0.063,247.4,247.38,25.93]
[1737624913241,0.063,247.4,247.37,18.83507194]
[1737624914859,0.063,247.4,247.33,18.83507194]
[1737624915142,23.776884,247.39,247.34,17.46]
[1737624915540,23.776884,247.37,247.27,18.83507194]
[1737624915746,18.83507194,247.34,247.23,18.83507194]
[1737624915941,23.776884,247.31,247.24,17.47]
[1737624916135,23.776884,247.31,247.16,6.2337]
[1737624916136,18.83507194,247.3,247.21,18.83507194]
[1737624916450,23.776884,247.29,247.21,18.83507194]
[1737624917030,18.83507194,247.32,247.23,36.30507194]
[1737624917233,20.0,247.31,247.23,36.30507194]
[1737624917537,23.776884,247.32,247.23,36.30507194]
[1737624918448,27.820284,247.32,247.23,17.47]
[1737624918645,23.776884,247.29,247.23,17.47]
[1737624920351,23.776884,247.27,247.23,17.47]
[1737624920657,23.776884,247.25,247.17,18.83507194]
[1737624921161,23.776884,247.25,247.14,18.83507194]
[1737624921362,23.776884,247.23,247.14,18.83507194]
[1737624921732,81.5,247.27,247.18,18.83507194]
[1737624922437,23.776884,247.26,247.18,18.83507194]
[1737624923758,23.776884,247.26,247.2,25.95]
[1737624924859,23.776884,247.26,247.18,18.83507194]
[1737624925232,4.1,247.25,247.16,18.83507194]
[1737624925664,4.1,247.25,247.14,18.83507194]
[1737624925835,43.776884,247.23,247.14,18.83507194]
[1737624926033,43.776884,247.23,247.08,6.5726]
[1737624926034,43.776884,247.23,247.16,18.83507194]
[1737624926541,23.776884,247.23,247.16,18.83507194]
[1737624926859,4.1,247.25,247.18,18.83507194]
[1737624927056,4.1,247.25,247.08,25.40767194]
[1737624927057,81.5,247.24,247.16,18.83507194]
[1737624928458,81.5,247.3,247.2,18.83507194]
[1737624928661,81.5,247.3,247.22,18.83507194]
[1737624928662,4.1,247.29,247.22,18.83507194]
[1737624928867,4.1,247.31,247.26,18.83507194]
[1737624929543,23.776884,247.32,247.28,18.83507194]
[1737624929743,4.1,247.33,247.28,18.83507194]
[1737624930338,4.1,247.33,247.3,18.83507194]
[1737624931363,4.1,247.33,247.32,18.83507194]
[1737624931550,81.563,247.4,247.32,18.83507194]
[1737624931748,81.563,247.4,247.25,1.0]
[1737624931749,0.063,247.4,247.34,18.83507194]
[1737624932059,0.063,247.4,247.38,18.83507194]
[1737624933759,0.063,247.4,247.36,18.83507194]
[1737624935569,0.063,247.4,247.38,18.83507194]
[1737624936058,0.063,247.4,247.36,18.83507194]
[1737624936262,0.063,247.4,247.34,18.83507194]
[1737624937064,23.839884,247.4,247.34,18.83507194]
[1737624937966,0.063,247.4,247.34,18.83507194]
[1737624938270,0.063,247.4,247.28,0.03]
[1737624938271,0.063,247.4,247.38,18.83507194]
[1737624940851,0.063,247.4,247.38,36.30507194]
[1737624945954,0.063,247.4,247.38,17.47]
[1737624946566,0.063,247.4,247.35,0.83]
[1737624948272,23.776884,247.39,247.35,0.83]
[1737624948477,42.61195594,247.36,247.35,0.83]
[1737624948675,23.776884,247.36,247.35,0.83]
[1737624950983,23.776884,247.36,247.28,0.03]
[1737624950984,23.776884,247.35,247.28,0.03]
[1737624951173,4.0426,247.37,247.29,25.15]
[1737624951174,23.776884,247.33,247.29,25.15]
[1737624954866,81.5,247.3,247.29,25.15]
[1737624955375,4.06,247.38,247.29,43.98507194]
[1737624955575,23.776884,247.37,247.32,18.83507194]
[1737624955966,23.776884,247.37,247.3,18.83507194]
[1737624956475,81.5,247.39,247.34,18.83507194]
[1737624956675,0.063,247.4,247.36,18.83507194]
[1737624957064,0.063,247.4,247.29,31.7841]
[1737624957065,23.839884,247.4,247.34,18.83507194]
[1737624957265,23.839884,247.4,247.32,18.83507194]
[1737624957785,23.776884,247.38,247.32,38.83507194]
[1737624958167,23.776884,247.38,247.32,18.83507194]
[1737624958682,23.776884,247.38,247.3,18.83507194]
[1737624959385,23.776884,247.38,247.3,18.86507194]
[1737624959969,23.776884,247.38,247.31,18.83507194]
[1737624960286,23.776884,247.38,247.3,0.03]
[1737624960287,42.61195594,247.32,247.3,0.03]
[1737624960590,25.367184,247.31,247.3,0.03]
[1737624961288,37.467184,247.31,247.3,0.03]
[1737624961485,25.367184,247.31,247.3,0.03]
[1737624962893,37.467184,247.31,247.3,0.03]
[1737624963095,42.61195594,247.29,247.28,0.03]
[1737624964588,20.0,247.21,247.1,18.83507194]
[1737624964791,23.776884,247.17,247.08,18.86507194]
[1737624965169,4.08,247.2,247.14,18.83507194]
[1737624965576,23.776884,247.19,247.14,18.83507194]
[1737624965984,4.08,247.2,247.14,18.83507194]
[1737624966187,81.5,247.24,247.18,18.83507194]
[1737624966691,4.1,247.26,247.2,18.83507194]
[1737624967202,4.1,247.26,247.22,18.83507194]
[1737624967407,81.5,247.3,247.24,18.83507194]
[1737624967571,81.5,247.3,247.26,18.83507194]
[1737624967774,18.89807194,247.4,247.28,18.83507194]
[1737624967998,4.1,247.39,247.32,18.83507194]
[1737624968504,0.063,247.4,247.34,18.83507194]
[1737624969795,18.83507194,247.39,247.29,18.83507194]
[1737624970189,0.063,247.4,247.31,18.83507194]
[1737624971795,0.063,247.38,247.31,18.83507194]
[1737624972296,18.83507194,247.37,247.26,18.83507194]
[1737624972494,23.776884,247.36,247.26,18.83507194]
[1737624973180,0.063,247.38,247.24,18.83507194]
[1737624973181,23.776884,247.34,247.24,18.83507194]
[1737624973501,23.776884,247.3,247.22,18.86507194]
[1737624973801,23.776884,247.3,247.24,18.83507194]
[1737624973995,23.776884,247.33,247.24,18.83507194]
[1737624974580,23.776884,247.33,247.26,18.83507194]
[1737624978198,18.83507194,247.37,247.28,18.83507194]
[1737624978406,4.06,247.36,247.3,18.83507194]
[1737624978603,23.776884,247.35,247.3,18.83507194]
[1737624979095,0.063,247.38,247.3,18.83507194]
[1737624979394,23.776884,247.37,247.32,18.83507194]
[1737624979601,4.123,247.38,247.32,18.83507194]
[1737624979978,0.063,247.38,247.34,18.83507194]
[1737624980871,0.063,247.38,247.36,18.83507194]
[1737624981613,0.063,247.38,247.37,2.0]
[1737624982894,0.063,247.4,247.39,22.0]
[1737624983097,0.063,247.4,247.39,40.83507194]
[1737624983909,0.063,247.4,247.39,38.83507194]
[1737624984080,0.063,247.4,247.39,18.83507194]
[1737624984274,0.063,247.4,247.37,18.83507194]
[1737624984478,0.063,247.4,247.35,18.83507194]
[1737624985076,0.063,247.4,247.33,18.83507194]
[1737624986108,0.063,247.4,247.35,18.83507194]
[1737624986281,0.063,247.4,247.37,18.83507194]
[1737624986687,0.063,247.4,247.33,18.83507194]
[1737624987111,0.063,247.4,247.33,38.83507194]
[1737624987306,0.063,247.4,247.37,18.83507194]
[1737624987488,0.063,247.4,247.35,18.83507194]
[1737624987802,0.063,247.4,247.31,18.83507194]
[1737624987997,0.063,247.4,247.33,18.83507194]
[1737624988499,23.776884,247.39,247.29,18.83507194]
[1737624988699,23.776884,247.37,247.29,18.83507194]
[1737624990605,23.776884,247.35,247.26,0.03]
[1737624990914,81.5,247.37,247.26,18.86507194]
[1737624991090,81.5,247.37,247.29,18.83507194]
[1737624991421,23.776884,247.36,247.29,18.83507194]
[1737624992398,4.08,247.38,247.31,18.83507194]
[1737624995303,4.08,247.38,247.27,1.0]
[1737624995304,0.063,247.4,247.36,18.83507194]
[1737624995507,0.063,247.4,247.39,18.83507194]
[1737624995708,0.063,247.4,247.37,18.83507194]
[1737624996028,0.063,247.38,247.35,21.0]
[1737624996206,0.063,247.38,247.35,22.6061701]
[1737624996699,0.063,247.38,247.37,1.0]
[1737624997011,0.063,247.38,247.37,19.83507194]
[1737624997389,0.063,247.38,247.37,18.83507194]
[1737624997594,0.063,247.38,247.34,18.83507194]
[1737624997816,0.063,247.38,247.32,18.83507194]
[1737624999407,0.063,247.38,247.34,18.83507194]
[1737624999714,0.063,247.38,247.32,18.83507194]
[1737624999914,23.839884,247.38,247.3,18.83507194]
[1737625001113,0.063,247.38,247.34,18.83507194]
[1737625001324,0.063,247.38,247.36,18.83507194]
[1737625004314,0.063,247.38,247.37,2.60617071]
[1737625004512,0.063,247.4,247.39,22.0]
[1737625004816,1.5613,247.56,247.46,1.0]
[1737625005017,4.123,247.61,247.54,18.83507194]
[1737625005320,4.123,247.61,247.49,1.0]
[1737625005321,0.063,247.61,247.57,18.83507194]
[1737625007000,23.839884,247.61,247.55,18.83507194]
[1737625007210,23.839884,247.61,247.53,18.83507194]
[1737625007714,23.839884,247.61,247.37,460.48901144]
[1737625007715,23.839884,247.58,247.49,18.83507194]
[1737625007917,18.83507194,247.57,247.47,18.83507194]
[1737625008229,23.776884,247.55,247.47,18.83507194]
[1737625009003,23.839884,247.55,247.47,18.83507194]
[1737625009224,0.063,247.55,247.5,18.83507194]
[1737625009909,0.063,247.55,247.48,18.83507194]
[1737625011719,0.063,247.55,247.54,18.83507194]
[1737625013243,0.063,247.55,247.5,18.83507194]
[1737625013913,0.063,247.55,247.48,18.83507194]
[1737625014650,23.776884,247.53,247.44,18.83507194]
[1737625015144,23.776884,247.53,247.46,18.83507194]
[1737625017316,0.063,247.55,247.52,18.83507194]
[1737625018231,0.063,247.55,247.52,44.75507194]
[1737625018615,0.063,247.55,247.52,25.92]
[1737625019245,0.063,247.55,247.54,18.83507194]
[1737625019830,23.776884,247.61,247.54,44.75507194]
[1737625020436,4.0378,247.66,247.56,18.83507194]
[1737625020437,18.83507194,247.66,247.56,18.83507194]
[1737625020733,4.103,247.65,247.56,18.83507194]
[1737625021135,27.879884,247.65,247.56,18.83507194]
[1737625022042,0.063,247.61,247.58,18.83507194]
[1737625022413,0.063,247.61,247.6,18.83507194]
[1737625023220,0.063,247.61,247.6,19.83507194]
[1737625024130,0.063,247.61,247.6,18.83507194]
[1737625028342,0.063,247.61,247.6,330.83507194]
[1737625029427,0.063,247.61,247.6,331.83507194]
[1737625029629,0.063,247.61,247.6,339.64177194]
[1737625029935,0.063,247.65,247.64,62.44702788]
[1737625030134,0.063,247.8,247.68,1.0]
[1737625030425,0.063,247.8,247.75,18.83507194]
[1737625031738,0.063,247.8,247.76,1.0]
[1737625031922,0.063,247.8,247.75,19.44031264]
[1737625032728,0.063,247.8,247.75,18.83507194]
[1737625034331,0.063,247.8,247.71,18.83507194]
[1737625034534,23.776884,247.79,247.71,18.83507194]
[1737625035241,23.806884,247.77,247.69,18.83507194]
[1737625035433,23.806884,247.77,247.67,18.83507194]
[1737625035631,23.776884,247.75,247.65,18.83507194]
[1737625036527,18.83507194,247.76,247.67,18.83507194]
[1737625036729,0.03,247.77,247.69,18.83507194]
[1737625037951,23.806884,247.77,247.69,18.83507194]
[1737625038149,23.806884,247.77,247.67,18.83507194]
[1737625038333,23.776884,247.71,247.61,18.83507194]
[1737625038830,23.776884,247.69,247.59,18.83507194]
[1737625039232,18.83507194,247.68,247.59,18.83507194]
[1737625039431,23.776884,247.67,247.6,20.0]
[1737625039854,22.81507194,247.72,247.63,18.83507194]
[1737625040263,3.98,247.72,247.63,18.83507194]
[1737625040480,3.98,247.72,247.6,20.0]
[1737625040481,3.98,247.72,247.65,18.83507194]
[1737625040666,3.98,247.72,247.67,18.83507194]
[1737625041667,3.98,247.72,247.69,18.83507194]
[1737625042854,0.03,247.77,247.71,18.83507194]
[1737625043327,0.03,247.77,247.75,18.83507194]
[1737625044341,0.03,247.77,247.73,18.83507194]
[1737625045768,0.03,247.77,247.72,20.0]
[1737625046350,0.03,247.77,247.73,18.83507194]
[1737625046956,0.03,247.77,247.75,18.83507194]
[1737625047163,0.03,247.77,247.71,38.83507194]
[1737625047839,23.806884,247.77,247.67,18.83507194]
[1737625048436,23.776884,247.75,247.65,18.86507194]
[1737625048635,23.776884,247.75,247.68,20.0]
[1737625048842,18.83507194,247.74,247.65,0.03]
[1737625049451,18.83507194,247.74,247.65,18.86507194]
[1737625049647,23.776884,247.71,247.65,0.03]
[1737625050144,18.83507194,247.72,247.65,0.03]
[1737625050358,23.776884,247.71,247.65,0.03]
[1737625050774,18.83507194,247.7,247.65,0.03]
[1737625051759,23.776884,247.69,247.65,0.03]
[1737625051956,18.83507194,247.68,247.65,0.03]
[1737625053869,23.776884,247.67,247.65,0.03]
[1737625054069,42.61195594,247.66,247.65,0.03]
[1737625055575,42.53195594,247.66,247.65,0.03]
[1737625057456,18.83507194,247.7,247.65,0.03]
[1737625058663,94.16419448,247.72,247.65,0.03]
[1737625058855,23.776884,247.71,247.65,0.03]
[1737625061896,94.16419448,247.72,247.65,0.03]
[1737625062098,3.96,247.73,247.65,18.86507194]
[1737625062380,1.566,247.75,247.65,18.86507194]
[1737625062381,1.566,247.75,247.67,18.83507194]
[1737625062579,23.776884,247.75,247.67,18.83507194]
[1737625063153,23.776884,247.75,247.65,0.03]
[1737625063346,23.776884,247.71,247.65,0.03]
[1737625063563,18.83507194,247.74,247.65,0.03]
[1737625063766,18.83507194,247.72,247.65,0.03]
[1737625063950,23.776884,247.71,247.65,0.03]
[1737625064147,18.83507194,247.74,247.65,0.03]
[1737625064351,18.83507194,247.72,247.65,0.03]
[1737625064972,23.776884,247.71,247.65,0.03]
[1737625065663,23.776884,247.69,247.65,0.03]
[1737625066776,18.83507194,247.72,247.65,0.03]
[1737625067375,23.776884,247.71,247.65,0.03]
[1737625067755,23.839884,247.72,247.65,0.03]
[1737625068254,0.063,247.72,247.65,11.76787362]
[1737625068458,0.063,247.72,247.65,0.03]
[1737625068870,23.839884,247.72,247.65,0.03]
[1737625069672,23.776884,247.7,247.65,0.03]
[1737625069873,11.73787362,247.69,247.65,0.03]
[1737625070074,23.776884,247.66,247.65,0.03]
[1737625071877,27.814584,247.66,247.65,0.03]
[1737625073775,28.814584,247.66,247.65,0.03]
[1737625073979,41.934584,247.66,247.65,0.03]
[1737625074357,20.0,247.61,247.54,25.95]
[1737625074563,11.73787362,247.56,247.54,25.95]
[1737625074765,23.776884,247.55,247.54,25.95]
[1737625075977,3.94,247.57,247.54,25.95]
[1737625075978,3.94,247.57,247.54,0.03]
[1737625078384,23.776884,247.56,247.54,0.03]
[1737625080682,28.816384,247.55,247.54,0.03]
[1737625080887,81.5,247.53,247.4,1.26]
[1737625081070,11.73787362,247.43,247.4,1.26]
[1737625081265,11.73787362,247.43,247.4,0.03]
[1737625082270,11.73787362,247.45,247.4,0.03]
[1737625083682,18.826446,247.43,247.4,0.03]
[1737625083881,42.60333,247.41,247.4,0.03]
[1737625084081,60.76513,247.41,247.4,0.03]
[1737625084384,60.76513,247.41,247.29,0.03]
[1737625084385,23.776884,247.3,247.29,0.03]
[1737625085479,18.826446,247.33,247.29,0.03]
[1737625085984,18.826446,247.35,247.29,0.03]
[1737625086369,18.826446,247.37,247.29,0.03]
[1737625086979,23.776884,247.38,247.29,0.03]
[1737625087182,23.776884,247.38,247.3,18.826446]
[1737625087778,18.826446,247.41,247.32,18.826446]
[1737625087986,3.94,247.42,247.32,18.826446]
[1737625088386,23.776884,247.41,247.32,18.826446]
[1737625088602,3.94,247.42,247.34,18.826446]
[1737625088891,23.776884,247.41,247.34,18.826446]
[1737625089274,4.0,247.42,247.29,0.03]
[1737625089470,4.0,247.42,247.36,18.826446]
[1737625090400,23.776884,247.43,247.36,18.826446]
[1737625090894,23.776884,247.43,247.34,18.826446]
[1737625091324,66.426446,247.45,247.36,18.826446]
[1737625091699,47.6,247.45,247.4,18.826446]
[1737625092009,43.62,247.45,247.43,18.826446]
[1737625092215,3.98,247.53,247.43,18.826446]
[1737625092413,3.98,247.53,247.46,18.826446]
[1737625092598,3.98,247.53,247.48,18.826446]
[1737625093022,3.98,247.53,247.5,18.826446]
[1737625093213,3.98,247.53,247.44,18.826446]
[1737625093214,3.98,247.53,247.52,18.826446]
[1737625093600,0.063,247.56,247.52,18.826446]
[1737625093797,0.063,247.56,247.54,18.826446]
[1737625097734,0.063,247.56,247.48,18.826446]
[1737625098831,18.889446,247.56,247.47,6.4183]
[1737625099018,27.816484,247.55,247.46,18.826446]
[1737625099208,105.276884,247.53,247.44,18.826446]
[1737625099403,100.326446,247.52,247.42,18.826446]
[1737625100427,104.366446,247.52,247.42,18.826446]
[1737625101217,81.5,247.52,247.46,18.826446]
[1737625101422,81.5,247.52,247.44,18.826446]
[1737625101620,23.776884,247.51,247.42,18.826446]
[1737625104533,23.776884,247.51,247.44,18.826446]
[1737625105737,81.5,247.52,247.44,18.826446]
[1737625105928,0.063,247.56,247.46,18.826446]
[1737625106131,3.96,247.55,247.46,18.826446]
[1737625106330,4.023,247.56,247.46,18.826446]
[1737625106645,4.023,247.56,247.48,18.826446]
[1737625107136,4.023,247.56,247.5,18.826446]
[1737625107339,0.063,247.56,247.5,18.826446]
[1737625107530,0.063,247.56,247.52,18.826446]
[1737625108239,0.063,247.56,247.5,18.826446]
[1737625108849,0.063,247.56,247.52,18.826446]
[1737625109040,0.063,247.56,247.44,18.826446]
[1737625109041,0.063,247.56,247.5,18.826446]
[1737625109223,23.776884,247.54,247.46,18.826446]
[1737625109422,23.776884,247.52,247.42,18.826446]
[1737625110519,23.776884,247.5,247.42,18.826446]
[1737625111043,38.826446,247.53,247.44,18.826446]
[1737625111346,23.776884,247.52,247.44,18.826446]
[1737625112033,23.776884,247.5,247.44,18.826446]
[1737625112229,18.826446,247.53,247.44,18.826446]
[1737625112431,0.063,247.56,247.48,18.826446]
[1737625112829,0.063,247.56,247.5,18.826446]
[1737625113146,0.063,247.56,247.54,18.826446]
[1737625113849,0.063,247.56,247.52,18.826446]
[1737625114428,0.063,247.56,247.54,18.826446]
[1737625118333,0.063,247.56,247.51,18.826446]
[1737625118644,0.063,247.56,247.49,18.826446]
[1737625118645,27.879384,247.56,247.49,18.826446]
[1737625118842,18.826446,247.55,247.47,18.826446]
[1737625120048,27.816584,247.54,247.45,18.826446]
[1737625120235,23.776884,247.52,247.43,18.826446]
[1737625120436,23.776884,247.5,247.41,18.826446]
[1737625121860,27.696884,247.5,247.41,18.826446]
[1737625122032,18.826446,247.47,247.4,0.03]
[1737625122237,23.776884,247.42,247.4,0.03]
[1737625122550,42.60333,247.41,247.4,0.03]
[1737625123353,0.063,247.56,247.47,1.0]
[1737625123564,0.063,247.56,247.55,18.826446]
[1737625123746,18.889446,247.72,247.58,20.0]
[1737625123933,18.889446,247.72,247.62,18.826446]
[1737625124127,6.31161304,247.66,247.62,18.826446]
[1737625124450,6.31161304,247.66,247.57,18.826446]
[1737625124632,6.31161304,247.66,247.59,18.826446]
[1737625126666,18.826446,247.64,247.53,18.826446]
[1737625126965,23.776884,247.65,247.55,18.826446]
[1737625127566,18.826446,247.64,247.53,18.826446]
[1737625127779,18.826446,247.6,247.51,18.826446]
[1737625127941,18.826446,247.6,247.51,20.0]
[1737625130470,18.826446,247.62,247.52,18.826446]
[1737625130644,23.776884,247.61,247.52,18.826446]
[1737625131348,23.776884,247.61,247.51,20.0]
[1737625131548,81.5,247.63,247.5,18.826446]
[1737625131549,23.776884,247.59,247.5,18.826446]
[1737625133573,27.815784,247.59,247.5,18.826446]
[1737625134767,27.815784,247.59,247.52,18.826446]
[1737625136072,18.826446,247.69,247.58,18.826446]
[1737625136261,18.826446,247.69,247.6,18.826446]
[1737625136664,23.776884,247.68,247.6,18.826446]
[1737625136970,23.776884,247.65,247.58,18.826446]
[1737625137273,23.776884,247.65,247.56,18.826446]
[1737625137463,42.60333,247.65,247.54,18.826446]
[1737625137962,23.776884,247.63,247.54,18.826446]
[1737625139486,4.0381,247.64,247.56,18.826446]
[1737625140089,23.776884,247.63,247.56,18.826446]
[1737625141498,18.826446,247.65,247.56,18.826446]
[1737625141672,4.0383,247.63,247.56,18.826446]
[1737625143293,23.776884,247.59,247.54,18.826446]
[1737625144675,23.776884,247.57,247.52,18.826446]
[1737625144860,23.776884,247.57,247.5,18.826446]
[1737625146987,23.776884,247.57,247.52,18.826446]
[1737625147360,81.5,247.64,247.56,18.826446]
[1737625147565,81.5,247.64,247.45,0.60601327]
[1737625147566,81.5,247.64,247.58,18.826446]
[1737625147769,23.776884,247.63,247.58,18.826446]
[1737625147972,1.5409,247.65,247.6,18.826446]
[1737625148181,23.776884,247.64,247.6,18.826446]
[1737625148566,23.776884,247.65,247.6,18.826446]
[1737625149369,4.163,247.66,247.6,18.826446]
[1737625149370,0.063,247.66,247.6,18.826446]
[1737625150093,23.839884,247.66,247.6,18.826446]
[1737625150590,0.063,247.64,247.6,18.826446]
[1737625151777,0.063,247.64,247.63,18.826446]
[1737625152272,0.063,247.66,247.65,20.0]
[1737625152487,0.03,247.77,247.68,20.0]
[1737625152802,0.03,247.77,247.71,18.826446]
[1737625154068,0.063,247.72,247.71,18.826446]
[1737625156667,0.063,247.72,247.71,21.166446]
[1737625158670,0.063,247.72,247.71,2.34]
[1737625159392,0.063,247.72,247.69,18.826446]
[1737625159894,23.776884,247.71,247.67,18.826446]
[1737625160999,0.063,247.72,247.65,18.826446]
[1737625161503,0.063,247.72,247.67,18.826446]
[1737625161785,0.063,247.72,247.69,18.826446]
[1737625162890,0.063,247.72,247.71,18.826446]
[1737625163990,0.063,247.72,247.69,18.826446]
[1737625164181,0.063,247.72,247.7,2.34]
[1737625164364,0.063,247.72,247.71,18.826446]
[1737625166792,0.063,247.72,247.71,44.726446]
[1737625167210,0.063,247.72,247.71,25.9]
[1737625168604,0.063,247.72,247.69,18.826446]
[1737625172430,0.063,247.72,247.71,18.826446]
[1737625177250,0.063,247.72,247.7,25.9]
[1737625177614,0.063,247.72,247.69,18.826446]
[1737625180043,0.063,247.72,247.67,18.826446]
[1737625181346,0.063,247.72,247.66,0.03]
[1737625181347,23.839884,247.72,247.66,0.03]
[1737625181544,100.326446,247.71,247.66,0.03]
[1737625182019,81.5,247.71,247.66,0.03]
[1737625183361,81.5,247.71,247.67,18.826446]
[1737625183638,81.5,247.71,247.66,0.03]
[1737625183817,81.5,247.71,247.67,18.826446]
[1737625184535,0.063,247.72,247.69,18.826446]
[1737625189321,0.063,247.72,247.66,0.03]
[1737625190442,0.063,247.72,247.67,18.826446]
[1737625192741,0.063,247.72,247.7,18.826446]
[1737625195342,0.063,247.72,247.71,0.60537297]
[1737625195540,0.063,247.72,247.7,18.826446]
[1737625197645,0.063,247.72,247.71,0.60538588]
[1737625197848,0.063,247.72,247.7,18.826446]
[1737625198426,0.063,247.72,247.71,0.60534944]
[1737625199749,0.063,247.72,247.71,1.60534944]
[1737625199979,0.063,247.72,247.71,4.76146734]
[1737625200455,0.063,247.72,247.71,34.89245134]
[1737625200939,0.063,247.72,247.71,13.71119029]
[1737625201245,0.03,247.77,247.75,20.0]
[1737625201445,0.03,247.77,247.76,19.43162266]
[1737625202830,0.063,247.8,247.79,20.0]
[1737625203029,0.063,247.8,247.79,57.652892]
[1737625203747,0.063,247.8,247.79,23.43219434]
[1737625204465,0.063,247.8,247.79,24.43219434]
[1737625204764,0.063,247.8,247.79,25.03722481]
[1737625204970,0.063,247.8,247.79,24.03722481]
[1737625205152,0.063,247.8,247.79,12.32112764]
[1737625206672,0.063,247.89,247.8,20.0]
[1737625207044,0.063,247.89,247.79,25.03722481]
[1737625208546,0.063,247.89,247.8,20.0]
[1737625209142,0.063,247.89,247.79,11.71609717]
[1737625210462,4.035,247.83,247.77,11.71609717]
[1737625210656,23.776884,247.79,247.71,11.74609717]
[1737625210846,23.776884,247.79,247.71,0.03]
[1737625211250,23.776884,247.79,247.71,11.74609717]
[1737625211770,23.776884,247.79,247.71,18.80001622]